bitfinex/quotes_SOLUSD_20250626
["timestamp","ask_amount","ask_price","bid_price","bid_amount"]
[1750938435536,5.16344938,143.64,143.6,107.34964886]
[1750938435745,5.16344938,143.63,143.6,107.34964886]
[1750938435926,5.16344938,143.62,143.6,107.34964886]
[1750938436249,6.48040827,143.65,143.6,107.34964886]
[1750938436250,5.16344938,143.64,143.6,107.34964886]
[1750938436441,5.16344938,143.63,143.6,107.34964886]
[1750938436622,5.16344938,143.62,143.6,107.34964886]
[1750938436825,5.16344938,143.64,143.6,107.34964886]
[1750938437026,5.16344938,143.63,143.6,107.34964886]
[1750938437239,5.16344938,143.62,143.6,107.34964886]
[1750938437438,5.16344938,143.64,143.6,107.34964886]
[1750938437638,5.16344938,143.63,143.6,107.34964886]
[1750938437951,5.16344938,143.62,143.6,107.34964886]
[1750938438155,6.48040827,143.65,143.61,18.64964886]
[1750938438156,5.16344938,143.64,143.61,18.64964886]
[1750938438364,5.16344938,143.63,143.61,18.64964886]
[1750938438654,5.16344938,143.62,143.61,18.64964886]
[1750938438952,5.16344938,143.64,143.61,18.64964886]
[1750938439155,5.16344938,143.63,143.61,18.64964886]
[1750938439353,5.16344938,143.62,143.61,18.64964886]
[1750938439652,5.16344938,143.64,143.61,18.64964886]
[1750938439856,5.16344938,143.63,143.61,18.64964886]
[1750938440038,5.16344938,143.62,143.61,18.64964886]
[1750938440236,5.16344938,143.64,143.61,107.34964886]
[1750938440441,5.16344938,143.63,143.61,107.34964886]
[1750938440753,5.16344938,143.62,143.61,107.34964886]
[1750938440947,5.16344938,143.64,143.61,107.34964886]
[1750938441250,5.16344938,143.63,143.61,107.34964886]
[1750938441554,5.16344938,143.62,143.61,107.34964886]
[1750938441759,5.16344938,143.64,143.61,107.34964886]
[1750938441935,5.16344938,143.63,143.61,114.31286555]
[1750938442253,6.52040827,143.66,143.61,114.31286555]
[1750938442254,5.16344938,143.65,143.61,114.31286555]
[1750938442460,5.16344938,143.64,143.61,263.21286555]
[1750938442652,5.16344938,143.65,143.61,263.21286555]
[1750938442861,5.16344938,143.64,143.61,256.24964886]
[1750938443057,5.16344938,143.65,143.61,263.21290554]
[1750938443262,5.16344938,143.64,143.61,263.21290554]
[1750938443555,5.16344938,143.65,143.61,263.21290554]
[1750938443767,5.16344938,143.64,143.61,263.21290554]
[1750938443944,5.16344938,143.65,143.61,263.21290554]
[1750938444141,5.16344938,143.64,143.61,263.21290554]
[1750938444332,5.16344938,143.65,143.61,263.21290554]
[1750938444533,5.16344938,143.64,143.61,263.21290554]
[1750938444733,5.16344938,143.65,143.61,263.21290554]
[1750938445339,5.20344938,143.66,143.61,263.21290554]
[1750938449162,5.20344938,143.66,143.63,18.64964886]
[1750938449342,0.04,143.66,143.63,18.64964886]
[1750938452365,0.04,143.66,143.63,256.24964886]
[1750938458063,0.04,143.66,143.63,107.34964886]
[1750938458570,5.16344938,143.65,143.63,88.7]
[1750938459254,5.20344938,143.66,143.63,88.7]
[1750938460168,0.04,143.66,143.63,90.3479]
[1750938461856,0.04,143.66,143.64,18.64964886]
[1750938462062,0.04,143.66,143.64,107.34964886]
[1750938465858,0.04,143.66,143.64,114.31148953]
[1750938466176,0.04,143.66,143.64,107.34964886]
[1750938466386,0.04,143.67,143.66,88.66]
[1750938466756,0.04,143.67,143.66,107.30964886]
[1750938468276,0.04,143.67,143.66,114.27052871]
[1750938469878,0.04,143.68,143.67,18.64964886]
[1750938470070,0.04,143.68,143.67,167.54964886]
[1750938470267,0.04,143.71,143.69,18.64964886]
[1750938470584,0.04,143.71,143.69,26.01821713]
[1750938471983,0.04,143.71,143.7,25.6085911]
[1750938472179,0.04,143.71,143.7,263.1685911]
[1750938473564,0.04,143.71,143.7,269.30356226]
[1750938473867,0.04,143.71,143.7,275.34356226]
[1750938474880,0.04,143.71,143.7,269.63507581]
[1750938475072,0.04,143.71,143.7,269.2085911]
[1750938475268,0.04,143.71,143.7,262.24964886]
[1750938475880,0.04,143.71,143.7,113.34964886]
[1750938477870,0.04,143.71,143.7,120.3085911]
[1750938479493,0.04,143.71,143.7,120.73507581]
[1750938480092,0.04,143.71,143.7,126.44356226]
[1750938481086,0.04,143.73,143.72,18.64964886]
[1750938481877,0.04,143.73,143.72,25.60762269]
[1750938482875,0.04,143.73,143.72,277.43259385]
[1750938483078,0.04,143.73,143.72,271.7241074]
[1750938483493,0.04,143.73,143.72,287.43259385]
[1750938483996,0.04,143.73,143.72,271.7241074]
[1750938484298,3.6234172,143.84,143.73,19.07613357]
[1750938484485,6.382,143.86,143.76,19.07613357]
[1750938484674,13.33341076,143.86,143.78,18.64964886]
[1750938487582,13.33341076,143.86,143.78,107.22964886]
[1750938487906,13.33341076,143.86,143.78,114.18470876]
[1750938488888,10.31079495,143.87,143.81,1.6476]
[1750938488889,5.16344938,143.87,143.81,1.6476]
[1750938489197,6.95055371,143.88,143.81,88.58]
[1750938489198,5.1424,143.88,143.81,88.58]
[1750938490188,6.95071939,143.87,143.81,88.58]
[1750938495794,24.32751788,143.87,143.81,88.58]
[1750938499813,6.95071939,143.87,143.81,88.58]
[1750938505310,24.32751788,143.87,143.81,88.58]
[1750938505516,6.95071939,143.87,143.81,88.58]
[1750938505809,6.95071939,143.87,143.82,18.64964886]
[1750938511328,6.95071939,143.87,143.82,107.22964886]
[1750938515525,12.10350352,143.87,143.82,107.22964886]
[1750938515722,5.15278413,143.87,143.82,108.75054886]
[1750938517225,15.72545571,143.88,143.82,108.75054886]
[1750938519808,5.15278413,143.87,143.82,108.75054886]
[1750938520115,5.15278413,143.86,143.82,108.75054886]
[1750938520423,5.15278413,143.86,143.82,90.1009]
[1750938520626,5.15278413,143.85,143.82,90.1009]
[1750938520932,5.15278413,143.86,143.82,90.1009]
[1750938521128,5.15278413,143.85,143.82,90.1009]
[1750938521336,11.6331924,143.86,143.82,90.1009]
[1750938521634,12.10450476,143.85,143.82,90.1009]
[1750938521954,5.15278413,143.85,143.82,90.1009]
[1750938522228,12.10416673,143.86,143.82,90.1009]
[1750938522431,5.15278413,143.85,143.82,90.1009]
[1750938523722,5.15278413,143.86,143.82,90.1009]
[1750938523924,5.15278413,143.85,143.82,90.1009]
[1750938524122,5.15278413,143.86,143.82,90.1009]
[1750938524310,5.15278413,143.85,143.82,90.1009]
[1750938524511,5.15278413,143.86,143.82,90.1009]
[1750938524712,5.15278413,143.85,143.82,90.1009]
[1750938525045,5.15278413,143.86,143.82,90.1009]
[1750938525229,5.15278413,143.85,143.82,90.1009]
[1750938525529,5.15278413,143.86,143.82,90.1009]
[1750938525715,5.15278413,143.85,143.82,90.1009]
[1750938525920,5.15278413,143.86,143.82,90.1009]
[1750938526252,5.15278413,143.85,143.82,90.1009]
[1750938526550,5.15278413,143.84,143.82,90.1009]
[1750938526745,5.15278413,143.86,143.82,90.1009]
[1750938526916,5.15278413,143.85,143.82,90.1009]
[1750938527108,5.15278413,143.84,143.82,90.1009]
[1750938527313,13.43129615,143.87,143.82,90.1009]
[1750938527314,5.15278413,143.86,143.82,90.1009]
[1750938527527,5.15278413,143.85,143.82,90.1009]
[1750938527811,5.15278413,143.84,143.82,90.1009]
[1750938528019,5.15278413,143.86,143.82,90.1009]
[1750938528228,5.15278413,143.85,143.82,90.1009]
[1750938528428,5.15278413,143.84,143.82,90.1009]
[1750938528633,6.48040827,143.86,143.82,90.1009]
[1750938528634,5.15278413,143.83,143.82,108.75054886]
[1750938528825,5.15278413,143.85,143.82,108.75054886]
[1750938529026,5.15278413,143.84,143.82,90.1009]
[1750938529231,5.15278413,143.83,143.82,88.58]
[1750938530237,12.10543656,143.83,143.82,88.58]
[1750938531251,5.15278413,143.83,143.82,88.58]
[1750938550754,11.6331924,143.83,143.82,88.58]
[1750938552130,5.15278413,143.83,143.82,88.58]
[1750938575954,33.77278413,143.83,143.79,88.58]
[1750938576200,6.51079731,143.81,143.79,88.58]
[1750938576481,5.15278413,143.8,143.79,88.58]
[1750938583284,5.15278413,143.81,143.79,88.58]
[1750938583456,5.15278413,143.8,143.79,88.58]
[1750938586489,12.10688705,143.8,143.79,88.58]
[1750938586665,12.10688705,143.8,143.75,90.1883]
[1750938586993,5.15278413,143.79,143.75,90.1883]
[1750938587174,5.15278413,143.78,143.75,90.1883]
[1750938587375,5.15278413,143.79,143.75,90.1883]
[1750938587580,5.15278413,143.78,143.75,90.1883]
[1750938587788,5.15278413,143.79,143.75,90.1883]
[1750938587962,5.15278413,143.78,143.75,90.1883]
[1750938588164,13.46490023,143.8,143.75,88.58]
[1750938588165,12.10738999,143.79,143.75,88.58]
[1750938588364,5.15278413,143.78,143.76,18.64964886]
[1750938588589,5.15278413,143.78,143.75,88.58]
[1750938588765,11.66358144,143.8,143.75,88.58]
[1750938589097,6.51079731,143.78,143.74,88.58]
[1750938589272,33.75278413,143.77,143.74,88.58]
[1750938589471,5.15278413,143.76,143.74,88.58]
[1750938589670,35.11079731,143.77,143.74,88.58]
[1750938589671,5.15278413,143.75,143.74,88.58]
[1750938589871,12.10885632,143.76,143.74,88.58]
[1750938590078,5.15278413,143.75,143.74,88.58]
[1750938590384,12.10885632,143.76,143.74,88.58]
[1750938591287,12.10885632,143.76,143.71,88.58]
[1750938593064,0.14216157,143.75,143.71,88.58]
[1750938593366,0.14216157,143.75,143.68,1.5352]
[1750938593367,0.14216157,143.75,143.68,90.1152]
[1750938593588,5.2949457,143.75,143.68,90.1152]
[1750938593773,6.9570057,143.74,143.68,90.1152]
[1750938593973,28.6,143.73,143.68,90.1152]
[1750938594375,33.75278413,143.73,143.68,90.1152]
[1750938594986,33.75278413,143.73,143.69,18.64964886]
[1750938595190,28.6,143.73,143.69,18.64964886]
[1750938595573,33.75278413,143.74,143.69,18.64964886]
[1750938596376,28.6,143.74,143.69,18.64964886]
[1750938597187,28.6,143.74,143.69,107.22964886]
[1750938597905,5.17196051,143.75,143.69,114.1889212]
[1750938598195,28.6,143.76,143.69,269.1902212]
[1750938598378,32.22497672,143.78,143.69,269.1902212]
[1750938598582,37.39693723,143.78,143.69,269.1902212]
[1750938598981,8.79693723,143.78,143.69,269.1902212]
[1750938599290,28.6,143.77,143.69,269.1902212]
[1750938599678,33.77196051,143.77,143.69,269.1902212]
[1750938601701,6.95376359,143.81,143.73,18.64964886]
[1750938601884,28.6,143.8,143.73,256.12964886]
[1750938602077,5.16873517,143.8,143.73,256.12964886]
[1750938602278,28.6,143.8,143.73,256.12964886]
[1750938602706,32.22437791,143.81,143.73,261.82955252]
[1750938602887,28.6,143.81,143.74,6.035]
[1750938603085,33.76867926,143.81,143.74,94.615]
[1750938603386,28.6,143.81,143.74,94.615]
[1750938603587,6.95365856,143.81,143.74,94.615]
[1750938604527,12.12284684,143.81,143.74,94.615]
[1750938606878,12.12284684,143.81,143.74,88.58]
[1750938607083,6.95365856,143.81,143.74,88.58]
[1750938607305,12.12284684,143.81,143.74,88.58]
[1750938608681,6.95365856,143.81,143.74,88.58]
[1750938608882,12.12284684,143.81,143.74,88.58]
[1750938610779,29.50689523,143.81,143.74,88.58]
[1750938612307,0.14216157,143.8,143.74,88.58]
[1750938612608,11.82214716,143.8,143.74,88.58]
[1750938612898,0.14216157,143.78,143.74,88.58]
[1750938613109,28.68,143.77,143.74,88.58]
[1750938613476,6.95603784,143.76,143.74,88.58]
[1750938613876,12.12522612,143.76,143.74,88.58]
[1750938614300,12.12522612,143.76,143.7,94.648]
[1750938615001,0.14216157,143.75,143.7,88.58]
[1750938615582,6.9570057,143.74,143.7,88.58]
[1750938615884,28.7,143.73,143.7,88.58]
[1750938616488,33.86918828,143.73,143.7,88.58]
[1750938617811,6.95797383,143.72,143.7,88.58]
[1750938618188,12.13758587,143.72,143.7,88.58]
[1750938619210,6.95797383,143.72,143.7,88.58]
[1750938619384,12.13824285,143.72,143.7,88.58]
[1750938621612,5.18026902,143.72,143.7,88.58]
[1750938622110,35.65761729,143.73,143.7,88.58]
[1750938624817,5.18166215,143.72,143.7,88.58]
[1750938627330,33.82166215,143.72,143.7,88.58]
[1750938628821,28.64,143.71,143.7,88.58]
[1750938633427,33.78166215,143.72,143.7,88.58]
[1750938635427,28.6,143.72,143.7,88.58]
[1750938643118,33.78166215,143.72,143.7,88.58]
[1750938643414,40.73965002,143.72,143.7,88.58]
[1750938643626,35.55798787,143.72,143.7,88.58]
[1750938648355,12.14911337,143.71,143.7,88.58]
[1750938650280,15.77615546,143.71,143.67,88.6]
[1750938650577,28.54,143.7,143.67,88.6]
[1750938651076,33.7350604,143.7,143.67,88.6]
[1750938651253,5.1950604,143.7,143.67,88.6]
[1750938651455,33.7350604,143.7,143.67,88.6]
[1750938656279,28.54,143.7,143.67,88.6]
[1750938657173,33.7350604,143.7,143.67,88.6]
[1750938657371,28.54,143.7,143.67,88.6]
[1750938657866,33.7350604,143.7,143.67,88.6]
[1750938658065,28.54,143.7,143.67,88.6]
[1750938658266,33.7350604,143.7,143.67,88.6]
[1750938658587,28.54,143.7,143.67,88.6]
[1750938658788,33.7350604,143.7,143.67,88.6]
[1750938658962,28.54,143.7,143.67,88.6]
[1750938659162,33.7350604,143.7,143.67,88.6]
[1750938659370,28.54,143.7,143.67,88.6]
[1750938659570,33.7350604,143.7,143.67,88.6]
[1750938659773,28.54,143.7,143.67,88.6]
[1750938660090,33.7350604,143.7,143.67,88.6]
[1750938660392,28.54,143.7,143.67,88.6]
[1750938660575,33.7350604,143.7,143.67,88.6]
[1750938660791,28.54,143.7,143.68,18.64964886]
[1750938660981,5.1950604,143.69,143.68,18.64964886]
[1750938662089,5.1950604,143.69,143.68,107.22964886]
[1750938663193,28.54,143.7,143.68,107.22964886]
[1750938663365,5.1950604,143.69,143.68,107.22964886]
[1750938664295,28.54,143.7,143.68,107.22964886]
[1750938664493,5.1950604,143.69,143.68,107.22964886]
[1750938665191,28.54,143.7,143.68,107.22964886]
[1750938665388,5.1950604,143.69,143.68,107.22964886]
[1750938665594,10.11890623,143.73,143.7,20.22074886]
[1750938665897,28.52,143.74,143.7,103.60568846]
[1750938668594,6.95674648,143.75,143.7,103.60568846]
[1750938668780,28.52,143.74,143.7,103.60568846]
[1750938668968,28.52,143.74,143.7,84.9560396]
[1750938669877,35.47715914,143.74,143.7,84.9560396]
[1750938676502,28.5,143.73,143.7,84.9560396]
[1750938677295,28.52,143.75,143.7,84.9560396]
[1750938677598,5.20485412,143.74,143.71,18.64964886]
[1750938677773,5.20485412,143.75,143.71,102.03458846]
[1750938677972,5.20485412,143.76,143.71,107.73449212]
[1750938678175,5.20485412,143.75,143.72,6.1182]
[1750938678395,5.20485412,143.77,143.72,6.1182]
[1750938678589,5.20485412,143.76,143.72,6.1182]
[1750938678789,5.20485412,143.77,143.72,6.1182]
[1750938679100,5.20485412,143.76,143.72,13.07597588]
[1750938679272,6.49255718,143.78,143.72,13.07597588]
[1750938679273,5.20485412,143.77,143.72,13.07597588]
[1750938679477,5.20485412,143.76,143.72,13.07597588]
[1750938679689,5.20485412,143.78,143.72,13.07597588]
[1750938679888,5.20485412,143.77,143.72,13.07597588]
[1750938680068,5.20485412,143.76,143.72,13.07597588]
[1750938680270,5.20485412,143.78,143.72,13.07597588]
[1750938680494,5.20485412,143.77,143.72,6.1182]
[1750938680698,5.20485412,143.78,143.72,13.07606167]
[1750938680908,5.20485412,143.77,143.72,13.07606167]
[1750938681088,5.20485412,143.78,143.72,13.07606167]
[1750938681289,33.76485412,143.79,143.72,13.07606167]
[1750938681498,33.76485412,143.79,143.72,245.36100127]
[1750938682199,33.76485412,143.79,143.74,1.5283]
[1750938682497,33.76485412,143.79,143.75,18.64964886]
[1750938682802,35.51473121,143.79,143.75,83.3849396]
[1750938682983,5.20485412,143.78,143.75,83.3849396]
[1750938684614,28.5,143.78,143.75,83.3849396]
[1750938685101,33.70485412,143.78,143.75,83.3849396]
[1750938685679,5.20485412,143.78,143.76,18.64964886]
[1750938685879,0.04,143.79,143.76,18.64964886]
[1750938686999,0.04,143.79,143.75,232.2849396]
[1750938687615,0.04,143.79,143.76,18.64964886]
[1750938688784,0.04,143.79,143.76,102.03458846]
[1750938694193,0.04,143.79,143.76,108.9906261]
[1750938696927,0.04,143.79,143.76,102.03458846]
[1750938697415,0.04,143.79,143.76,83.3849396]
[1750938704328,0.04,143.79,143.77,18.64964886]
[1750938705736,3.66345816,143.84,143.8,18.64964886]
[1750938705919,0.04,143.84,143.8,101.99458846]
[1750938713047,0.04,143.84,143.8,83.3449396]
[1750938720260,0.04,143.84,143.81,18.64964886]
[1750938721156,0.04,143.84,143.81,101.99458846]
[1750938727287,0.04,143.84,143.81,108.94810694]
[1750938727467,0.04,143.84,143.82,6.72231358]
[1750938727672,0.04,143.84,143.82,6.027]
[1750938727989,0.04,143.84,143.82,18.64964886]
[1750938729178,0.04,143.84,143.81,83.3449396]
[1750938732694,5.22740517,143.84,143.81,83.3449396]
[1750938738579,0.04,143.84,143.81,83.3449396]
[1750938741785,5.22740517,143.84,143.81,83.3449396]
[1750938741993,12.17970271,143.84,143.81,83.3449396]
[1750938742193,5.18740517,143.83,143.81,83.3449396]
[1750938743289,12.17970271,143.84,143.81,83.3449396]
[1750938743485,5.18740517,143.83,143.81,83.3449396]
[1750938746598,5.18740517,143.83,143.81,101.99458846]
[1750938747196,5.22740517,143.84,143.82,18.64964886]
[1750938747393,5.18740517,143.83,143.82,18.64964886]
[1750938747782,5.18740517,143.83,143.82,101.99458846]
[1750938749173,5.20185862,143.83,143.82,101.99458846]
[1750938753982,3.17269423,143.83,143.82,101.99458846]
[1750938755713,3.17269423,143.83,143.82,83.3449396]
[1750938762316,3.17269423,143.83,143.82,101.99458846]
[1750938769135,3.17269423,143.83,143.82,83.3449396]
[1750938774326,3.17269423,143.83,143.82,101.99458846]
[1750938783341,3.17269423,143.83,143.82,108.94772432]
[1750938783539,3.21269423,143.84,143.82,108.94772432]
[1750938783835,3.17269423,143.83,143.82,101.99458846]
[1750938785344,3.21269423,143.84,143.82,101.99458846]
[1750938786345,3.21269423,143.84,143.82,250.89458846]
[1750938788145,3.17269423,143.83,143.82,250.89458846]
[1750938790354,3.17269423,143.83,143.82,250.89458846]
[1750938792341,3.17269423,143.83,143.82,101.99458846]
[1750938797865,3.17269423,143.83,143.82,108.94772432]
[1750938798366,5.24611962,143.84,143.83,80.17224537]
[1750938799967,0.04,143.84,143.83,247.72189423]
[1750938800157,0.04,143.84,143.83,254.67454666]
[1750938804058,0.04,143.86,143.85,80.09224537]
[1750938804253,0.04,143.86,143.85,98.74189423]
[1750938804663,0.04,143.86,143.85,100.35269423]
[1750938805465,0.04,143.86,143.85,107.30438001]
[1750938805776,0.04,143.86,143.85,259.49054756]
[1750938805972,0.04,143.86,143.85,259.7748707]
[1750938806273,0.04,143.87,143.86,18.79181043]
[1750938806474,0.04,143.87,143.86,202.85687395]
[1750938806675,0.04,143.87,143.86,203.7034537]
[1750938806974,0.04,143.9,143.89,18.79181043]
[1750938807163,0.04,143.9,143.89,210.65487486]
[1750938807370,0.04,143.9,143.89,216.90965282]
[1750938807578,0.04,143.9,143.89,188.40965282]
[1750938808083,3.61930043,144.0,143.89,205.78403602]
[1750938808388,13.44643792,144.01,143.89,205.78403602]
[1750938808389,13.44643792,144.01,143.92,0.14216157]
[1750938808571,13.44643792,144.01,143.93,18.64964886]
[1750938809294,6.94411464,144.01,143.93,18.64964886]
[1750938811985,6.94411464,144.01,143.93,27.19571209]
[1750938813098,6.94411464,144.01,143.93,255.68795746]
[1750938814400,0.14216157,144.0,143.93,98.24189423]
[1750938816295,0.14216157,144.0,143.93,79.59224537]
[1750938816477,0.14216157,143.98,143.93,79.59224537]
[1750938817798,6.9458915,143.97,143.93,79.59224537]
[1750938821980,10.56621244,143.97,143.93,79.59224537]
[1750938824299,0.14216157,143.96,143.93,79.47224537]
[1750938825483,6.94685654,143.95,143.93,79.47224537]
[1750938825679,6.94685654,143.95,143.89,99.68689423]
[1750938825989,0.14216157,143.94,143.89,79.47224537]
[1750938826302,24.3139979,143.95,143.89,79.47224537]
[1750938826303,6.94685654,143.95,143.89,79.47224537]
[1750938828104,0.14216157,143.95,143.89,79.47224537]
[1750938829916,6.94733916,143.94,143.89,79.47224537]
[1750938830615,6.94733916,143.94,143.9,18.64964886]
[1750938830986,7.08853556,143.96,143.9,18.64964886]
[1750938833014,6.94637399,143.96,143.9,18.64964886]
[1750938836504,6.94637399,143.96,143.9,98.12189423]
[1750938837915,8.77816455,143.97,143.9,98.12189423]
[1750938837916,15.72413596,143.97,143.9,98.12189423]
[1750938840209,0.14216157,143.96,143.9,98.12189423]
[1750938840994,0.14216157,143.96,143.9,79.47224537]
[1750938842031,6.94685654,143.95,143.9,79.47224537]
[1750938842392,6.94685654,143.95,143.91,18.64964886]
[1750938845803,15.72486735,143.96,143.91,18.64964886]
[1750938847228,12.10478865,143.95,143.91,18.64964886]
[1750938847910,12.10478865,143.95,143.9,79.47224537]
[1750938848113,5.15784361,143.94,143.9,79.47224537]
[1750938848628,5.15784361,143.93,143.9,79.47224537]
[1750938848821,5.15784361,143.94,143.9,79.47224537]
[1750938849121,5.15784361,143.93,143.9,79.47224537]
[1750938849323,12.10561095,143.94,143.9,79.47224537]
[1750938849512,5.15784361,143.93,143.9,79.47224537]
[1750938850927,5.15784361,143.92,143.9,79.47224537]
[1750938851131,6.94776734,143.94,143.9,79.47224537]
[1750938851132,5.15784361,143.93,143.9,79.47224537]
[1750938851315,5.15784361,143.92,143.9,79.47224537]
[1750938854625,12.10618726,143.92,143.9,79.47224537]
[1750938854825,6.94804905,143.93,143.9,79.47224537]
[1750938855026,5.15784361,143.92,143.9,79.47224537]
[1750938859231,5.15784361,143.91,143.9,79.47224537]
[1750938859432,5.15784361,143.92,143.9,79.47224537]
[1750938859636,5.15784361,143.91,143.9,79.47224537]
[1750938859815,5.15784361,143.92,143.9,79.47224537]
[1750938860017,5.15784361,143.91,143.9,79.47224537]
[1750938860215,5.15784361,143.92,143.9,79.47224537]
[1750938860430,5.15784361,143.91,143.9,79.47224537]
[1750938860623,5.15784361,143.92,143.9,79.47224537]
[1750938860828,5.15784361,143.91,143.9,79.47224537]
[1750938861031,5.15784361,143.92,143.9,79.47224537]
[1750938861243,5.15784361,143.91,143.9,79.47224537]
[1750938861418,5.15784361,143.92,143.9,79.47224537]
[1750938861621,5.15784361,143.91,143.9,79.47224537]
[1750938861938,5.15784361,143.92,143.9,79.47224537]
[1750938862124,5.15784361,143.91,143.9,79.47224537]
[1750938862326,5.15784361,143.92,143.9,79.47224537]
[1750938862537,5.15784361,143.94,143.9,79.47224537]
[1750938862842,5.15784361,143.93,143.9,79.47224537]
[1750938863041,13.39439862,143.95,143.9,79.47224537]
[1750938863042,5.15784361,143.92,143.9,79.47224537]
[1750938863242,5.15784361,143.94,143.9,79.47224537]
[1750938863449,5.15784361,143.93,143.9,79.47224537]
[1750938863639,5.15784361,143.92,143.9,79.47224537]
[1750938863823,5.15784361,143.94,143.9,79.47224537]
[1750938864029,5.15784361,143.93,143.9,79.47224537]
[1750938864235,5.15784361,143.92,143.91,18.64964886]
[1750938864549,5.15784361,143.94,143.91,98.12189423]
[1750938864748,5.15784361,143.93,143.91,98.12189423]
[1750938865061,5.15784361,143.92,143.91,98.12189423]
[1750938865358,5.15784361,143.94,143.91,98.12189423]
[1750938865545,5.15784361,143.93,143.91,98.12189423]
[1750938865749,5.15784361,143.92,143.91,98.12189423]
[1750938865920,5.15784361,143.94,143.91,98.12189423]
[1750938866121,5.15784361,143.93,143.91,98.12189423]
[1750938866325,5.15784361,143.92,143.91,98.12189423]
[1750938867401,5.15784361,143.92,143.91,79.47224537]
[1750938875302,12.10614822,143.92,143.91,79.47224537]
[1750938876298,40.70614822,143.92,143.91,79.47224537]
[1750938877104,33.75784361,143.92,143.91,79.47224537]
[1750938880001,40.70614822,143.92,143.91,79.47224537]
[1750938881193,47.15345273,143.92,143.91,79.47224537]
[1750938883997,47.15345273,143.92,143.87,104.24189423]
[1750938884312,12.10670302,143.91,143.87,104.24189423]
[1750938884492,5.15784361,143.9,143.87,104.24189423]
[1750938884685,5.15784361,143.89,143.87,104.24189423]
[1750938885010,5.15784361,143.9,143.87,104.24189423]
[1750938885195,5.15784361,143.89,143.87,104.24189423]
[1750938885390,6.94885941,143.91,143.87,104.24189423]
[1750938885391,5.15784361,143.9,143.87,104.24189423]
[1750938885606,5.15784361,143.89,143.87,104.24189423]
[1750938885790,5.15784361,143.9,143.87,104.24189423]
[1750938885990,5.15784361,143.89,143.87,104.24189423]
[1750938886216,5.15784361,143.9,143.87,104.24189423]
[1750938886397,5.15784361,143.89,143.87,104.24189423]
[1750938886718,5.15784361,143.91,143.87,104.24189423]
[1750938886884,5.15784361,143.9,143.87,104.24189423]
[1750938887088,5.15784361,143.89,143.87,104.24189423]
[1750938887316,12.10666086,143.91,143.87,79.47224537]
[1750938887508,5.15784361,143.9,143.87,79.47224537]
[1750938887710,5.15784361,143.89,143.87,79.47224537]
[1750938888005,5.15784361,143.88,143.87,79.47224537]
[1750938888214,5.15784361,143.9,143.87,79.47224537]
[1750938891119,12.10807991,143.88,143.87,79.47224537]
[1750938892814,5.15784361,143.88,143.87,79.47224537]
[1750938893014,28.6,143.89,143.87,79.47224537]
[1750938893222,33.75784361,143.89,143.87,79.47224537]
[1750938894821,40.70760465,143.89,143.87,79.47224537]
[1750938895119,5.15784361,143.88,143.87,79.47224537]
[1750938896598,33.75784361,143.89,143.87,79.47224537]
[1750938900038,28.6,143.89,143.87,79.47224537]
[1750938900632,33.75784361,143.89,143.87,79.47224537]
[1750938905831,40.70785195,143.89,143.87,79.47224537]
[1750938906136,5.15784361,143.88,143.87,79.47224537]
[1750938907914,12.10807991,143.88,143.87,79.47224537]
[1750938908442,12.25024148,143.88,143.85,79.49224537]
[1750938908627,28.5,143.87,143.85,79.49224537]
[1750938908833,33.65784361,143.87,143.85,79.49224537]
[1750938910341,6.95120255,143.86,143.85,79.49224537]
[1750938910537,12.10904616,143.86,143.85,79.49224537]
[1750938911041,18.27090773,143.86,143.84,0.02]
[1750938911349,33.78000518,143.85,143.83,0.02]
[1750938911534,5.30000518,143.84,143.83,0.02]
[1750938912123,13.94619008,143.84,143.83,0.02]
[1750938912329,12.25217425,143.84,143.83,0.02]
[1750938913047,20.8991059,143.84,143.83,0.02]
[1750938913223,12.25217425,143.84,143.83,0.02]
[1750938916140,18.71971384,143.84,143.83,0.02]
[1750938916346,22.3442134,143.84,143.83,0.02]
[1750938919873,15.87667381,143.84,143.83,0.02]
[1750938932347,10.7188302,143.84,143.83,0.02]
[1750938932547,15.87667381,143.84,143.83,0.02]
[1750938945680,22.3442134,143.84,143.83,0.02]
[1750938947987,15.73451224,143.84,143.83,0.02]
[1750938948181,15.87667381,143.84,143.83,0.02]
[1750938949384,44.37667381,143.84,143.83,0.02]
[1750938951671,15.73451224,143.84,143.83,0.02]
[1750938951879,3.62449956,143.84,143.83,87.01034537]